bitfinex-derivatives/quotes_ETHF0:USTF0_20250504
["timestamp","ask_amount","ask_price","bid_price","bid_amount"]
[1746332363324,1.08922,1835.9,1835.8,1.08926]
[1746332363531,2.72572,1835.9,1835.8,1.08926]
[1746332364424,1.6365,1835.9,1835.8,1.08926]
[1746332365329,2.72572,1835.9,1835.8,1.08926]
[1746332365626,1.6365,1835.9,1835.8,1.08926]
[1746332365829,2.72572,1835.9,1835.8,1.08926]
[1746332366827,10.69774265,1835.9,1835.8,1.08926]
[1746332367531,1.08927,1835.8,1835.7,4.30819]
[1746332367728,2.69747,1835.8,1835.7,32.82664046]
[1746332368028,1.6082,1835.8,1835.7,28.51845046]
[1746332368532,1.6082,1835.8,1835.7,29.60775046]
[1746332370029,9.58022265,1835.8,1835.7,29.60775046]
[1746332371424,9.58022265,1835.8,1835.7,31.26915046]
[1746332371625,10.66949265,1835.8,1835.7,31.26915046]
[1746332372829,9.58022265,1835.8,1835.7,31.26915046]
[1746332374335,2.30261603,1835.8,1835.7,31.26915046]
[1746332375139,5.99061603,1835.8,1835.7,31.26915046]
[1746332377635,11.44256108,1835.8,1835.7,31.26915046]
[1746332379438,12.53183108,1835.8,1835.7,31.26915046]
[1746332379929,11.44256108,1835.8,1835.7,31.26915046]
[1746332380936,5.99061603,1835.8,1835.7,31.26915046]
[1746332383338,7.07988603,1835.8,1835.7,31.26915046]
[1746332384337,1.08933,1835.7,1835.6,3.535]
[1746332384633,6.83973,1835.7,1835.6,3.535]
[1746332385234,12.16178,1835.7,1835.3,1.6499]
[1746332385439,1.08956,1835.4,1835.3,1.08957]
[1746332385831,3.60786,1835.4,1835.3,1.08957]
[1746332387139,3.60786,1835.4,1835.2,1.8178]
[1746332387343,4.8827,1835.3,1835.2,4.55973]
[1746332387735,4.8827,1835.3,1835.2,33.07818046]
[1746332391038,11.02721292,1835.3,1835.2,33.07818046]
[1746332392048,12.11678292,1835.3,1835.2,31.98855046]
[1746332392547,12.11678292,1835.3,1835.2,33.07818046]
[1746332393847,1.08963,1835.2,1835.1,3.535]
[1746332394042,2.77253,1835.2,1835.1,32.05345046]
[1746332394952,2.77253,1835.2,1835.1,33.14314046]
[1746332396450,6.40316411,1835.2,1835.1,33.14314046]
[1746332396750,5.31353411,1835.2,1835.1,33.14314046]
[1746332397454,3.63063411,1835.2,1835.1,33.14314046]
[1746332398246,3.63063411,1835.2,1835.1,34.78194046]
[1746332399649,8.65789689,1835.3,1835.2,1.08963]
[1746332399650,3.2078,1835.3,1835.2,1.08963]
[1746332399852,3.2078,1835.3,1835.2,33.00818046]
[1746332401952,4.7864,1835.3,1835.2,33.00818046]
[1746332402950,4.7864,1835.3,1835.2,36.52118046]
[1746332403653,4.7864,1835.3,1835.2,34.88238046]
[1746332405158,5.87597,1835.3,1835.2,34.88238046]
[1746332405352,4.7864,1835.3,1835.2,13.10899046]
[1746332405656,9.1118083,1835.3,1835.2,6.36393]
[1746332406758,9.1118083,1835.3,1835.2,34.88238046]
[1746332407060,7.5332083,1835.3,1835.2,34.88238046]
[1746332408557,6.83843411,1835.3,1835.2,34.88238046]
[1746332414759,3.63063411,1835.3,1835.2,34.88238046]
[1746332415165,3.63063411,1835.3,1835.2,38.57038046]
[1746332416064,3.63063411,1835.3,1835.2,34.88238046]
[1746332418069,3.63063411,1835.3,1835.2,38.57038046]
[1746332418760,5.21043411,1835.3,1835.2,38.57038046]
[1746332418957,1.5798,1835.3,1835.2,35.05738046]
[1746332419266,2.66937,1835.3,1835.2,33.77875046]
[1746332419457,10.87717,1835.3,1835.2,3.499]
[1746332419667,1.08965,1835.2,1835.0,1.95861]
[1746332419865,3.2078,1835.1,1835.0,8.70367046]
[1746332420060,3.2078,1835.1,1835.0,7.83477046]
[1746332420267,4.7876,1835.1,1835.0,7.83477046]
[1746332420569,5.87729,1835.1,1835.0,1.08971]
[1746332421769,4.7876,1835.1,1835.0,1.08971]
[1746332422371,5.48247657,1835.1,1835.0,1.08971]
[1746332423368,6.57216657,1835.1,1835.0,1.08971]
[1746332424066,5.48247657,1835.1,1835.0,1.08971]
[1746332424272,9.17047657,1835.1,1835.0,1.08971]
[1746332425873,16.44808319,1835.1,1835.0,1.08971]
[1746332426977,17.53779319,1835.1,1834.9,3.499]
[1746332427276,1.08981,1834.9,1834.8,0.999]
[1746332427573,3.2078,1834.9,1834.8,2.08887]
[1746332427766,5.0571,1834.9,1834.8,2.08887]
[1746332427966,6.7246,1834.9,1834.8,2.08887]
[1746332428166,11.50241,1834.9,1834.8,2.08887]
[1746332428377,11.50241,1834.9,1834.8,0.999]
[1746332428976,11.50241,1834.9,1834.8,2.08887]
[1746332430181,25.0520286,1834.9,1834.6,1.8093]
[1746332430372,1.6675,1834.8,1834.7,29.60838046]
[1746332430977,2.75737,1834.8,1834.6,28.51845046]
[1746332431178,8.5633,1834.8,1834.7,1.08993]
[1746332431377,6.8958,1834.8,1834.7,1.08993]
[1746332432976,6.8958,1834.8,1834.7,2.00253]
[1746332433180,3.2078,1834.8,1834.7,2.00253]
[1746332433380,3.2078,1834.8,1834.7,29.60838046]
[1746332433583,3.2078,1834.8,1834.7,1.08993]
[1746332433782,3.2078,1834.8,1834.7,22.86332]
[1746332434890,3.2078,1834.8,1834.7,29.60838046]
[1746332435082,9.35192033,1834.8,1834.7,29.60838046]
[1746332437691,10.44179033,1834.8,1834.7,29.60838046]
[1746332438802,9.35192033,1834.8,1834.7,29.60838046]
[1746332445887,6.83276653,1834.8,1834.7,29.60838046]
[1746332448496,7.92263653,1834.8,1834.5,3.499]
[1746332448702,3.2078,1834.6,1834.2,5.3291]
[1746332449000,2.90515,1834.5,1834.4,7.83517046]
[1746332449193,6.11295,1834.5,1834.4,7.83517046]
[1746332449395,6.11295,1834.5,1834.4,29.60856046]
[1746332449799,3.2078,1834.5,1834.4,29.60856046]
[1746332450000,1.6633,1834.7,1834.6,1.08999]
[1746332450001,4.8711,1834.7,1834.6,1.08999]
[1746332451002,5.96103,1834.7,1834.6,1.08999]
[1746332451900,5.96103,1834.7,1834.5,2.993]
[1746332452202,1.6376,1834.6,1834.5,31.51145046]
[1746332459206,1.6376,1834.6,1834.5,35.01145046]
[1746332460109,1.6376,1834.6,1834.5,38.69945046]
[1746332461109,1.6376,1834.6,1834.5,35.01145046]
[1746332464707,3.62496653,1834.7,1834.6,1.08999]
[1746332464901,3.62496653,1834.7,1834.6,31.33574046]
[1746332465106,3.62496653,1834.7,1834.6,36.33574046]
[1746332465313,5.44924376,1834.8,1834.7,1.08993]
[1746332465504,3.96075376,1834.8,1834.7,34.54348046]
[1746332465709,8.97713871,1835.0,1834.9,1.08981]
[1746332466009,8.97713871,1835.0,1834.9,37.21486046]
[1746332466311,8.97713871,1835.0,1834.9,42.63016046]
[1746332466511,15.43446431,1835.1,1835.0,1.08975]
[1746332466705,15.43446431,1835.1,1835.0,2.81705]
[1746332466905,15.43446431,1835.1,1835.0,31.33550046]
[1746332467212,15.43446431,1835.1,1835.0,35.02350046]
[1746332471214,12.34836183,1835.3,1835.2,1.08963]
[1746332471215,1.5701,1835.3,1835.2,1.08963]
[1746332471513,1.5701,1835.3,1835.2,33.10808046]
[1746332474617,1.5701,1835.3,1835.2,34.74938046]
[1746332477209,1.5701,1835.3,1835.2,35.70968046]
[1746332480217,1.5701,1835.3,1835.2,39.39768046]
[1746332482620,1.5701,1835.3,1835.2,17.62429046]
[1746332482927,1.5701,1835.3,1835.2,39.39768046]
[1746332486126,1.5701,1835.3,1835.2,35.70968046]
[1746332490128,1.5701,1835.3,1835.2,39.39768046]
[1746332492927,1.8963,1835.6,1835.5,1.08945]
[1746332493227,1.8963,1835.6,1835.5,4.58545]
[1746332493427,3.5955,1835.6,1835.5,4.58545]
[1746332497338,2.6429,1835.6,1835.5,33.10390046]
[1746332497833,2.6429,1835.6,1835.5,34.06260046]
[1746332498227,2.6429,1835.6,1835.5,37.75060046]
[1746332499236,2.6429,1835.6,1835.5,34.67218635]
[1746332503952,2.6429,1835.6,1835.5,33.71348635]
[1746332504251,2.6429,1835.6,1835.5,30.02548635]
[1746332510354,2.6429,1835.6,1835.5,23.28042589]
[1746332510653,2.6429,1835.6,1835.5,30.02548635]
[1746332516055,11.40901455,1835.9,1835.8,1.08927]
[1746332516358,12.33781455,1835.9,1835.8,4.57727]
[1746332516962,13.42703455,1835.9,1835.8,4.57727]
[1746332517254,13.42703455,1835.9,1835.8,3.488]
[1746332517460,18.42703455,1835.9,1835.8,3.488]
[1746332517758,1.08938,1835.7,1835.5,3.487]
[1746332517957,1.8687,1835.6,1835.5,33.09485046]
[1746332518252,1.8687,1835.6,1835.5,4.5764]
[1746332518457,2.95809,1835.6,1835.5,4.5764]
[1746332518858,1.8687,1835.6,1835.5,4.5764]
[1746332519263,3.548,1835.6,1835.5,4.5764]
[1746332520362,4.63739,1835.6,1835.5,4.5764]
[1746332520765,3.548,1835.6,1835.5,4.5764]
[1746332522564,4.24253656,1835.6,1835.5,4.5764]
[1746332525763,4.24253656,1835.6,1835.5,26.34979]
[1746332526666,5.33192656,1835.6,1835.5,3.487]
[1746332526966,1.0895,1835.5,1835.4,3.488]
[1746332527166,6.0373,1835.5,1835.4,3.488]
[1746332527761,11.0373,1835.5,1835.4,3.488]
[1746332528068,6.03727,1835.5,1835.1,3.488]
[1746332528268,1.587,1835.4,1835.3,1.08957]
[1746332529571,4.29726,1835.5,1835.3,22.86291]
[1746332529772,2.5405,1835.4,1835.3,22.86291]
[1746332530771,1.587,1835.4,1835.3,22.86291]
[1746332531465,1.587,1835.4,1835.3,23.78801]
[1746332532571,1.587,1835.4,1835.3,30.53307046]
[1746332532772,8.86925111,1835.6,1835.5,1.08945]
[1746332533066,8.86925111,1835.6,1835.5,22.86284]
[1746332533067,2.616,1835.6,1835.5,22.86284]
[1746332533270,2.616,1835.6,1835.5,1.08945]
[1746332533463,2.616,1835.6,1835.5,29.60790046]
[1746332533670,1.6761,1835.6,1835.5,31.26240046]
[1746332534467,12.28262585,1835.7,1835.6,1.08939]
[1746332534670,12.28262585,1835.7,1835.6,33.15094046]
[1746332535470,8.66206689,1835.7,1835.6,33.15094046]
[1746332537272,10.34256689,1835.7,1835.6,33.15094046]
[1746332539074,5.45426689,1835.7,1835.6,33.15094046]
[1746332541973,5.45426689,1835.7,1835.6,36.35874046]
[1746332542978,5.45426689,1835.8,1835.7,1.08933]
[1746332543179,5.45426689,1835.8,1835.7,34.78768046]
[1746332544282,5.45426689,1835.8,1835.7,38.47568046]
[1746332544670,4.08050689,1835.8,1835.7,38.47568046]
[1746332546284,15.91615585,1836.1,1835.7,38.47568046]
[1746332546285,6.84133,1836.1,1836.0,1.08916]
[1746332546479,6.84133,1836.1,1836.0,33.09561046]
[1746332547481,6.84133,1836.1,1836.0,34.73861046]
[1746332555589,6.84133,1836.1,1836.0,33.09561046]
[1746332558888,6.84133,1836.1,1836.0,4.57716]
[1746332560201,6.84133,1836.1,1836.0,33.09561046]
[1746332560804,6.84133,1836.1,1836.0,35.71081046]
[1746332562103,5.17243,1836.1,1836.0,35.71081046]
[1746332563104,5.17243,1836.1,1836.0,39.39881046]
[1746332571003,5.17243,1836.1,1836.0,37.70911046]
[1746332574301,5.17243,1836.1,1836.0,39.28731046]
[1746332588112,1.37689,1836.1,1836.0,45.19931046]
[1746332588311,1e-05,1836.1,1836.0,45.19931046]
[1746332592912,1e-05,1836.1,1836.0,43.62111046]
[1746332593715,1.64391,1836.1,1836.0,43.62111046]
[1746332596716,1.6439,1836.1,1836.0,43.62111046]
[1746332598020,1.6439,1836.1,1836.0,14.17716]
[1746332598221,1.6439,1836.1,1836.0,10.48916]
[1746332598222,6.6439,1836.1,1836.0,10.48916]
[1746332598421,1.6439,1836.1,1836.0,4.57716]
[1746332598721,6.6439,1836.1,1836.0,4.57716]
[1746332599018,6.6439,1836.1,1836.0,3.488]
[1746332599317,7.733,1836.1,1836.0,3.488]
[1746332599520,6.6439,1836.1,1836.0,3.488]
[1746332600110,10.3319,1836.1,1836.0,3.488]
[1746332600310,11.421,1836.1,1836.0,3.488]
[1746332600506,12.11547297,1836.1,1836.0,3.488]
[1746332601714,12.11547297,1836.1,1835.8,3.486]
[1746332601915,2.703,1836.0,1835.9,1.08922]
[1746332606827,8.85210164,1836.0,1835.9,1.08922]
[1746332609621,6.33821101,1836.0,1835.9,1.08922]
[1746332610426,6.33821101,1836.0,1835.9,29.60767046]
[1746332610624,6.33821101,1836.0,1835.9,32.26577046]
[1746332611125,3.63521101,1836.0,1835.9,36.91817046]
[1746332611526,3.63521101,1836.0,1835.9,40.12597046]
[1746332612630,3.63521101,1836.0,1835.9,43.61197046]
[1746332613131,1.6925,1836.1,1836.0,1.08916]
[1746332613330,1.6925,1836.1,1836.0,31.25931046]
[1746332614031,4.59391101,1836.3,1836.2,1.08904]
[1746332614231,6.31121101,1836.3,1836.2,33.09349046]
[1746332614431,6.31121101,1836.3,1836.2,26.34843]
[1746332614635,6.31121101,1836.3,1836.2,27.36063]
[1746332615527,2.676,1836.3,1836.2,27.36063]
[1746332616632,2.676,1836.3,1836.2,34.10569046]
[1746332618334,2.676,1836.3,1836.2,35.76889046]
[1746332619334,1.7173,1836.3,1836.2,35.76889046]
[1746332620335,1.7173,1836.3,1836.2,36.77189046]
[1746332620735,3.63521101,1836.4,1836.3,1.08898]
[1746332620935,3.63521101,1836.4,1836.3,22.86237]
[1746332621133,5.32921101,1836.4,1836.3,2.65638]
[1746332621730,5.32921101,1836.4,1836.3,24.42977]
[1746332623839,1.694,1836.4,1836.3,24.42977]
[1746332625439,1.694,1836.4,1836.3,31.17483046]
[1746332633142,1.694,1836.4,1836.3,29.60743046]
[1746332633343,2.7178,1836.4,1836.3,29.60743046]
[1746332639654,1.694,1836.4,1836.3,29.60743046]
[1746332639946,1.694,1836.4,1836.3,31.31973046]
[1746332654557,1.694,1836.4,1836.3,29.60743046]
[1746332654753,1.694,1836.4,1836.3,1.08898]
[1746332656753,1.08898,1836.3,1836.2,3.486]
[1746332657157,7.38808,1836.3,1836.2,3.486]
[1746332659558,10.59588,1836.3,1836.2,3.486]
[1746332661659,10.59588,1836.3,1836.1,4.57408]
[1746332661660,1.08904,1836.2,1836.1,4.57408]
[1746332661863,3.80054,1836.2,1836.1,4.57408]
[1746332663665,3.80054,1836.2,1836.1,3.485]
[1746332665062,4.49489964,1836.2,1836.1,3.485]
[1746332668477,9.94940775,1836.2,1836.1,3.485]
[1746332669076,13.63740775,1836.2,1836.1,3.485]
[1746332671983,13.63740775,1836.2,1836.1,4.5741]
[1746332672278,13.63740775,1836.2,1836.1,3.485]
[1746332684181,13.63740775,1836.2,1836.1,4.4921]
[1746332685181,16.84520775,1836.2,1836.1,4.4921]
[1746332687776,16.84520775,1836.2,1836.1,26.26549]
[1746332689481,16.84520775,1836.2,1836.1,4.4921]
[1746332689683,16.84520775,1836.2,1836.1,26.26549]
[1746332698188,16.84520775,1836.2,1836.1,27.35459]
[1746332698482,18.66305549,1836.2,1836.1,26.26549]
[1746332701793,18.66305549,1836.2,1836.1,4.4921]
[1746332702091,18.66305549,1836.2,1836.1,26.26549]
[1746332703392,18.66305549,1836.2,1836.1,22.78049]
[1746332704594,1.08916,1836.0,1835.9,3.482]
[1746332704786,1.08916,1836.0,1835.7,2.1181]
[1746332704787,1.08927,1835.8,1835.7,2.1181]
[1746332705186,1.08927,1835.8,1835.7,30.63655046]
[1746332705387,2.74287,1835.8,1835.7,30.63655046]
[1746332705790,1.6536,1835.8,1835.7,30.63655046]
[1746332705986,1.6536,1835.8,1835.7,32.29495046]
[1746332707089,1.08926,1835.9,1835.8,1.08927]
[1746332707294,2.74286,1835.9,1835.8,31.26612046]
[1746332707994,1.6536,1835.9,1835.8,31.26612046]
[1746332708196,3.2078,1836.0,1835.9,1.08922]
[1746332708390,3.2078,1836.0,1835.9,35.78157046]
[1746332708997,12.28262585,1836.0,1835.9,35.78157046]
[1746332709193,13.37178585,1836.0,1835.9,35.78157046]
[1746332710191,13.37178585,1836.0,1835.9,34.69235046]
[1746332710396,13.37178585,1836.0,1835.9,32.95625046]
[1746332710896,15.06638585,1836.0,1835.9,33.90855046]
[1746332711097,15.06638585,1836.0,1835.9,35.64445046]
[1746332712293,15.28519385,1836.0,1835.9,35.64445046]
[1746332712596,22.56863291,1836.0,1835.9,36.73367046]
[1746332713499,22.56863291,1836.0,1835.9,35.64445046]
[1746332714601,22.56863291,1836.0,1835.9,36.73367046]
[1746332715094,22.56863291,1836.0,1835.9,35.64445046]
[1746332716002,22.56863291,1836.0,1835.9,32.95275046]
[1746332717804,15.28519385,1836.0,1835.9,32.95275046]
[1746332719304,15.28519385,1836.0,1835.9,3.482]
[1746332720112,18.97319385,1836.0,1835.9,3.482]
[1746332721114,19.44890664,1836.0,1835.9,3.482]
[1746332723607,1.08927,1835.8,1835.7,0.9737]
[1746332723908,4.29707,1835.8,1835.7,2.06303]
[1746332724108,4.29707,1835.8,1835.7,30.58148046]
[1746332724303,5.94967,1835.8,1835.7,30.58148046]
[1746332726411,6.64419079,1835.8,1835.7,30.58148046]
[1746332727410,6.64419079,1835.8,1835.7,29.49215046]
[1746332727612,6.64419079,1835.8,1835.7,21.77339]
[1746332727913,1.08933,1835.7,1835.6,4.57137]
[1746332728104,3.62873,1835.7,1835.6,33.08982046]
[1746332729312,2.5394,1835.7,1835.6,33.08982046]
[1746332729610,1.5779,1835.7,1835.6,33.08982046]
[1746332729813,1.5779,1835.7,1835.6,34.71402046]
[1746332731616,11.18001235,1835.8,1835.7,1.08933]
[1746332731813,12.75451235,1835.8,1835.7,22.86272]
[1746332732013,12.75451235,1835.8,1835.7,2.10623]
[1746332732817,13.84378235,1835.8,1835.7,1.0169]
[1746332733307,13.84378235,1835.8,1835.6,4.57135]
[1746332733509,2.77983,1835.7,1835.6,5.51555]
[1746332734114,2.77983,1835.7,1835.6,34.03400046]
[1746332735618,1.6905,1835.7,1835.6,34.03400046]
[1746332736016,1.6905,1835.7,1835.6,35.73190046]
[1746332736420,12.26933235,1835.8,1835.7,1.08933]
[1746332736421,11.18001235,1835.8,1835.7,1.08933]
[1746332736618,11.18001235,1835.8,1835.7,31.30568046]
[1746332738219,6.84413294,1835.8,1835.7,34.99368046]
[1746332739327,6.84413294,1835.8,1835.7,31.30568046]
[1746332742428,8.45293294,1835.8,1835.7,31.30568046]
[1746332743330,10.96566472,1835.8,1835.7,31.30568046]
[1746332745430,7.75786472,1835.8,1835.7,31.30568046]
[1746332751046,6.14906472,1835.8,1835.7,31.30568046]
[1746332751340,5.00509472,1835.8,1835.7,38.20148046]
[1746332751532,5.00509472,1835.8,1835.7,43.20148046]
[1746332751737,5.00509472,1835.8,1835.7,38.20148046]
[1746332752243,1.01772231,1835.8,1835.7,38.20148046]
[1746332752441,2.31e-06,1835.8,1835.7,38.20148046]
[1746332753543,3.63924451,1836.0,1835.9,1.08922]
[1746332753743,3.63924451,1836.0,1835.9,33.08767046]
[1746332754139,3.63924451,1836.0,1835.9,34.69137046]
[1746332754336,3.63924451,1836.0,1835.9,38.37937046]
[1746332756747,8.43794451,1836.1,1836.0,1.08916]
[1746332756938,8.43794451,1836.1,1836.0,32.20611046]
[1746332758547,5.23014451,1836.1,1836.0,32.20611046]
[1746332759134,3.63924451,1836.1,1836.0,35.89411046]
[1746332760149,3.63924451,1836.1,1836.0,32.20611046]
[1746332761242,3.63924451,1836.1,1836.0,35.89411046]
[1746332761947,3.63924451,1836.2,1836.1,1.0891]
[1746332762151,3.63924451,1836.2,1836.1,7.2552]
[1746332762344,3.63924451,1836.2,1836.1,35.77365046]
[1746332765949,5.29914451,1836.2,1836.1,35.77365046]
[1746332766556,1.6599,1836.2,1836.1,35.77365046]
[1746332769956,0.9906,1836.5,1836.4,1.08892]
[1746332770155,1.9996,1836.5,1836.4,4.56592]
[1746332771247,3.6445,1836.5,1836.4,4.56592]
[1746332777568,4.73336,1836.5,1836.4,4.56592]
[1746332778058,8.42136,1836.5,1836.4,4.56592]
[1746332779160,4.73336,1836.5,1836.4,4.56592]
[1746332779860,4.73336,1836.5,1836.4,3.477]
[1746332780052,8.42136,1836.5,1836.4,3.477]
[1746332780858,8.42136,1836.5,1836.4,4.56592]
[1746332781561,12.75499886,1836.5,1836.4,4.56592]
[1746332782759,12.75499886,1836.5,1836.4,3.477]
[1746332782963,12.75499886,1836.5,1836.4,4.56592]
[1746332784363,11.66613886,1836.5,1836.4,4.56592]
[1746332784861,8.02689435,1836.5,1836.4,4.56592]
[1746332785159,4.33889435,1836.5,1836.4,4.56592]
[1746332785761,3.34829435,1836.5,1836.4,26.33931]
[1746332788066,3.34829435,1836.5,1836.4,33.08437046]
[1746332788266,3.34829435,1836.5,1836.4,34.76497046]
[1746332788664,1.6449,1836.5,1836.4,34.76497046]
[1746332797471,1.6449,1836.5,1836.4,33.08437046]
[1746332797869,2.6172,1836.5,1836.4,33.08437046]
[1746332800081,6.3052,1836.5,1836.4,33.08437046]
[1746332801079,2.6172,1836.5,1836.4,33.08437046]
[1746332801280,3.31154209,1836.5,1836.4,33.08437046]
[1746332803081,6.99954209,1836.5,1836.4,33.08437046]
[1746332804188,3.31154209,1836.5,1836.4,33.08437046]
[1746332805084,10.58923365,1836.5,1836.4,33.08437046]
[1746332806090,14.27723365,1836.5,1836.4,33.08437046]
[1746332808891,15.36609365,1836.5,1836.4,33.08437046]
[1746332809082,14.27723365,1836.5,1836.4,33.08437046]
[1746332811187,10.58923365,1836.5,1836.4,33.08437046]
[1746332811995,9.61693365,1836.5,1836.4,33.08437046]
[1746332813387,9.61693365,1836.5,1836.4,34.68607046]
[1746332814080,13.30493365,1836.5,1836.4,34.68607046]
[1746332814696,11.66003365,1836.5,1836.4,34.68607046]
[1746332815085,7.97203365,1836.5,1836.4,34.68607046]
[1746332815896,9.53893365,1836.5,1836.4,34.68607046]
[1746332816495,7.72163424,1836.5,1836.4,33.08437046]
[1746332816697,8.77583424,1836.5,1836.4,33.08437046]
[1746332820691,11.98363424,1836.5,1836.4,33.08437046]
[1746332821097,8.77583424,1836.5,1836.4,33.08437046]
[1746332822402,7.72163424,1836.5,1836.4,33.08437046]
[1746332823097,10.92943424,1836.5,1836.4,33.08437046]
[1746332824400,12.01829424,1836.5,1836.4,33.08437046]
[1746332824695,10.92943424,1836.5,1836.4,33.08437046]
[1746332825199,12.01829424,1836.5,1836.4,33.08437046]
[1746332825801,10.92943424,1836.5,1836.4,33.08437046]
[1746332826001,12.01829424,1836.5,1836.4,33.08437046]
[1746332826299,12.01829424,1836.5,1836.4,31.99545046]
[1746332826499,12.01829424,1836.5,1836.4,33.08437046]
[1746332827098,15.70629424,1836.5,1836.4,33.08437046]
[1746332830103,6.55790209,1836.5,1836.4,33.08437046]
[1746332831105,10.24590209,1836.5,1836.4,33.08437046]
[1746332831602,7.03810209,1836.5,1836.4,33.08437046]
[1746332831807,10.24590209,1836.5,1836.4,31.99545046]
[1746332832205,10.24590209,1836.5,1836.4,33.08437046]
[1746332833004,10.24590209,1836.5,1836.4,31.99545046]
[1746332834003,17.52359365,1836.5,1836.4,33.08437046]
[1746332834500,17.52359365,1836.5,1836.4,3.477]
[1746332835000,1.08898,1836.3,1836.2,1.089]
[1746332835206,1.08916,1836.0,1835.9,7.27038682]
[1746332835794,4.85646,1836.0,1835.9,7.27038682]
[1746332836208,8.54446,1836.0,1835.9,7.27038682]
[1746332838200,1.08922,1835.9,1835.8,3.472]
[1746332838400,5.95142,1835.9,1835.8,3.472]
[1746332842404,4.8622,1835.9,1835.8,4.56127]
[1746332842712,7.80060374,1835.9,1835.8,33.07972046]
[1746332843007,6.14620374,1835.9,1835.8,34.73542046]
[1746332843415,6.14620374,1835.9,1835.8,39.73542046]
[1746332844113,6.14620374,1835.9,1835.8,43.42342046]
[1746332846313,4.7801,1836.1,1836.0,1.08916]
[1746332846613,4.7801,1836.1,1836.0,29.60761046]
[1746332847010,4.7801,1836.1,1836.0,32.15451046]
[1746332851610,3.2078,1836.1,1836.0,32.15451046]
[1746332852016,3.63079452,1836.3,1836.2,1.08904]
[1746332852218,3.63079452,1836.3,1836.2,33.07849046]
[1746332852615,3.63079452,1836.3,1836.2,35.77219046]
[1746332854022,5.32289452,1836.5,1836.2,34.68315046]
[1746332854319,5.32289452,1836.5,1836.4,29.60737046]
[1746332855320,5.32289452,1836.5,1836.4,1.08892]
[1746332855521,6.41175452,1836.5,1836.4,1.08892]
[1746332857025,2.78096,1836.5,1836.4,1.08892]
[1746332858925,1.6921,1836.5,1836.4,7.83398046]
[1746332861942,1.6921,1836.5,1836.4,29.60737046]
[1746332863542,2.78096,1836.5,1836.4,29.60737046]
[1746332864042,2.78096,1836.5,1836.4,28.51845046]
[1746332864542,2.78096,1836.5,1836.4,29.60737046]
[1746332864745,2.78096,1836.5,1836.4,28.51845046]
[1746332865441,2.78096,1836.5,1836.4,29.60737046]
[1746332867646,1.6921,1836.5,1836.4,29.60737046]
[1746332868145,1.6921,1836.5,1836.4,31.17407046]
[1746332879654,4.8999,1836.5,1836.4,31.17407046]
[1746332880958,1.6921,1836.5,1836.4,31.17407046]
[1746332885559,8.49939452,1836.7,1836.6,1.0888]
[1746332886552,9.58813452,1836.7,1836.6,1.0888]
[1746332889251,13.27613452,1836.7,1836.6,1.0888]
[1746332889453,13.97040154,1836.7,1836.6,1.0888]
[1746332891264,13.97040154,1836.7,1836.5,6.56821]
[1746332891459,2.7112,1836.6,1836.5,35.08666046]
[1746332892658,3.8,1836.6,1836.5,33.02055046]
[1746332892859,3.8,1836.6,1836.5,3.468]
[1746332893155,7.488,1836.6,1836.5,3.468]
[1746332893667,10.6958,1836.6,1836.5,3.468]
[1746332895462,1.08892,1836.4,1836.3,3.468]
[1746332895663,4.29672,1836.4,1836.3,3.468]
[1746332896057,7.06112,1836.4,1836.3,3.468]
[1746332896466,5.9722,1836.4,1836.3,4.55698]
[1746332896763,4.9336,1836.4,1836.3,33.07543046]
[1746332897261,1.7258,1836.4,1836.3,33.07543046]
[1746332897465,1.7258,1836.4,1836.3,34.05273046]
[1746332899365,7.88100603,1836.4,1836.3,34.05273046]
[1746332912375,6.15520603,1836.4,1836.3,34.05273046]
[1746332913577,5.94411619,1836.4,1836.3,34.05273046]
[1746332916867,5.24984917,1836.4,1836.3,34.05273046]
[1746332919077,3.64044917,1836.4,1836.3,34.05273046]
[1746332920376,5.24554917,1836.4,1836.3,34.05273046]
[1746332923983,5.93985687,1836.4,1836.3,34.05273046]
[1746332924780,7.89665687,1836.4,1836.3,34.05273046]
[1746332925081,7.89665687,1836.4,1836.3,4.55698]
[1746332927986,9.71714671,1836.4,1836.3,4.55698]
[1746332940903,9.71714671,1836.4,1836.3,26.33037]
[1746332941497,9.71714671,1836.4,1836.3,33.07543046]
[1746332946209,9.71714671,1836.4,1836.3,26.33037]
[1746332946409,9.71714671,1836.4,1836.3,33.07543046]
[1746332950410,11.53745971,1836.4,1836.3,33.07543046]
[1746332950812,11.53745971,1836.4,1836.3,34.01593046]
[1746332953114,4.2562077,1836.4,1836.3,34.01593046]
[1746332953314,4.2562077,1836.4,1836.3,4.55698]
[1746332955017,5.3451277,1836.4,1836.3,3.468]
[1746332956117,9.0331277,1836.4,1836.3,3.468]
[1746332956611,24.78378257,1836.4,1836.3,3.468]
[1746332957918,24.78378257,1836.4,1836.3,4.55698]
[1746332959117,24.78378257,1836.4,1836.3,3.468]
[1746332959911,17.50253056,1836.4,1836.3,3.468]
[1746332961808,1.08916,1836.0,1835.9,3.463]
[1746332962017,1.08933,1835.7,1835.6,10.73338682]
[1746332962818,2.67963,1835.7,1835.6,10.73338682]
[1746332963116,6.36763,1835.7,1835.6,10.73338682]
[1746332964720,1.08941,1835.6,1835.4,8.35985682]
[1746332964920,1.0332,1835.5,1835.4,30.13324682]
[1746332965317,3.80165,1835.5,1835.4,7.27038682]
[1746332968424,1.08951,1835.4,1835.3,3.464]
[1746332968620,5.94451,1835.4,1835.3,3.464]
[1746332968820,1.08959,1835.3,1835.1,1.08967]
[1746332969024,2.73679,1835.3,1835.2,28.51845046]
[1746332969522,2.73679,1835.3,1835.2,21.77339]
[1746332969720,3.70089,1835.3,1835.2,21.77339]
[1746332970322,3.70089,1835.3,1835.2,22.86302]
[1746332970525,1.6472,1835.3,1835.2,22.86302]
[1746332970721,1.6472,1835.3,1835.2,29.60808046]
[1746332972324,3.2078,1835.4,1835.3,1.08957]
[1746332972524,3.2078,1835.4,1835.3,33.32782046]
[1746332973623,4.29731,1835.4,1835.3,32.23825046]
[1746332973823,5.95341,1835.4,1835.3,32.23825046]
[1746332975225,5.95341,1835.4,1835.3,29.48355046]
[1746332975819,5.95341,1835.4,1835.3,30.57312046]
[1746332976119,5.95341,1835.4,1835.3,32.24952046]